bitfinex-derivatives/quotes_BTCF0:USTF0_20250907
["timestamp","ask_amount","ask_price","bid_price","bid_amount"]
[1757284561342,0.29738468,111250.0,111240.0,0.55460657]
[1757284563239,0.29738468,111250.0,111240.0,0.7161653]
[1757284567137,0.00013484,111260.0,111250.0,0.1123522]
[1757284567342,0.34013484,111260.0,111250.0,0.28194857]
[1757284567542,0.34013484,111260.0,111250.0,0.2999335]
[1757284568136,0.00013484,111260.0,111250.0,0.2999335]
[1757284568336,0.00113484,111260.0,111250.0,0.3059335]
[1757284568643,0.00213484,111260.0,111250.0,0.3119335]
[1757284569544,0.00213484,111260.0,111250.0,0.15629713]
[1757284569738,0.00213484,111260.0,111250.0,0.3119335]
[1757284569932,0.02213484,111260.0,111250.0,0.3119335]
[1757284571143,0.36213484,111260.0,111250.0,0.3119335]
[1757284573747,0.36213484,111260.0,111250.0,0.15629713]
[1757284573943,0.36213484,111260.0,111250.0,0.3119335]
[1757284574745,0.36213484,111260.0,111250.0,0.2220513]
[1757284575149,0.38443484,111260.0,111250.0,0.2220513]
[1757284575746,0.38443484,111260.0,111250.0,0.06641493]
[1757284576349,0.54000789,111260.0,111250.0,0.22198798]
[1757284576947,0.54000789,111260.0,111250.0,0.38354671]
[1757284582348,0.69558094,111260.0,111250.0,0.22797366]
[1757284582547,0.94558094,111260.0,111250.0,0.34089822]
[1757284582750,0.94558094,111260.0,111250.0,0.17933949]
[1757284582954,0.94558094,111260.0,111250.0,0.06641493]
[1757284589162,0.94558094,111260.0,111250.0,0.22797366]
[1757284595661,0.94558094,111260.0,111250.0,0.20998873]
[1757284595866,0.95255094,111260.0,111250.0,0.28662949]
[1757284596067,0.95255094,111260.0,111250.0,0.31268949]
[1757284596266,0.94558094,111260.0,111250.0,0.19961873]
[1757284596461,0.94558094,111260.0,111250.0,0.03806]
[1757284596668,0.94558094,111260.0,111250.0,0.05126]
[1757284599367,0.69558094,111260.0,111250.0,0.05126]
[1757284603471,0.69558094,111260.0,111250.0,0.16433076]
[1757284605174,0.69558094,111260.0,111250.0,0.14276076]
[1757284605370,0.69558094,111260.0,111250.0,0.12956076]
[1757284608478,0.69558094,111260.0,111250.0,0.15113076]
[1757284610580,0.69558094,111260.0,111250.0,0.16433076]
[1757284611481,0.69558094,111260.0,111250.0,0.05126]
[1757284611782,0.38443484,111260.0,111250.0,0.20683305]
[1757284611975,1.36096789,111260.0,111250.0,0.20683305]
[1757284614379,1.36076789,111260.0,111250.0,0.20683305]
[1757284617087,1.36076789,111260.0,111250.0,0.05126]
[1757284617279,1.51634094,111260.0,111250.0,0.05126]
[1757284623189,1.92191399,111260.0,111250.0,0.12961162]
[1757284625100,1.92091399,111260.0,111250.0,0.12361162]
[1757284625300,1.92191399,111260.0,111250.0,0.10967162]
[1757284625505,1.89961399,111260.0,111240.0,0.0001]
[1757284625798,0.46671915,111250.0,111240.0,0.0001]
[1757284626102,0.6611461,111250.0,111230.0,0.0001]
[1757284626302,1.1312261,111240.0,111230.0,0.0001]
[1757284626604,1.4612261,111240.0,111220.0,0.0363]
[1757284626807,0.15557305,111230.0,111220.0,0.0363]
[1757284627100,0.46557305,111230.0,111220.0,0.0362]
[1757284629602,0.46657305,111230.0,111220.0,0.0412]
[1757284629804,0.46757305,111230.0,111220.0,0.0502]
[1757284631306,0.53934506,111230.0,111220.0,0.0502]
[1757284631904,0.69491811,111230.0,111220.0,0.014]
[1757284632704,0.686146,111230.0,111220.0,0.02796959]
[1757284633302,0.686146,111230.0,111220.0,0.014]
[1757284633504,0.686146,111230.0,111220.0,0.02796716]
[1757284633807,0.936146,111230.0,111220.0,0.02796716]
[1757284635001,1.76447811,111230.0,111220.0,0.02796716]
[1757284638407,1.60908964,111230.0,111220.0,0.02796716]
[1757284641103,1.60908964,111230.0,111220.0,0.02797053]
[1757284641302,0.78952964,111230.0,111220.0,0.02797053]
[1757284641504,1.60888964,111230.0,111220.0,0.02797053]
[1757284642612,0.78952964,111230.0,111220.0,0.02797053]
[1757284642813,1.60880964,111230.0,111220.0,0.02797053]
[1757284643715,0.78952964,111230.0,111220.0,0.02797053]
[1757284643909,1.60888964,111230.0,111220.0,0.02797053]
[1757284644515,1.60900964,111230.0,111220.0,0.06437053]
[1757284644711,1.60900964,111230.0,111220.0,0.02797053]
[1757284651719,1.60900964,111230.0,111220.0,0.02798877]
[1757284653620,1.60900964,111230.0,111220.0,0.014]
[1757284659436,1.35900964,111230.0,111220.0,0.014]
[1757284660225,1.51476727,111230.0,111220.0,0.014]
[1757284660426,3.32860727,111230.0,111210.0,6.001e-05]
[1757284660630,0.31151526,111220.0,111210.0,6.001e-05]
[1757284660833,0.62151526,111220.0,111210.0,6.001e-05]
[1757284661835,0.62251526,111220.0,111210.0,0.01006001]
[1757284662834,0.62251526,111220.0,111210.0,0.01106001]
[1757284663033,0.62151526,111220.0,111210.0,0.00106001]
[1757284663336,0.62151526,111220.0,111210.0,6.001e-05]
[1757284663633,0.62451526,111220.0,111210.0,6.001e-05]
[1757284667840,0.72451526,111220.0,111210.0,6.001e-05]
[1757284669241,0.74851526,111220.0,111210.0,0.00206001]
[1757284671337,0.64851526,111220.0,111210.0,0.00206001]
[1757284673944,1.46683526,111220.0,111210.0,0.00206001]
[1757284680456,1.46683526,111220.0,111210.0,0.002]
[1757284682857,1.46631526,111220.0,111210.0,0.002]
[1757284684759,1.46631526,111220.0,111210.0,0.00471]
[1757284686160,0.64851526,111220.0,111210.0,0.00471]
[1757284686359,1.31055763,111220.0,111210.0,0.04088]
[1757284686758,1.31055763,111220.0,111210.0,0.01805]
[1757284687063,1.46631526,111220.0,111210.0,0.01805]
[1757284687266,1.46631526,111220.0,111210.0,0.00471]
[1757284694768,1.46631526,111220.0,111200.0,0.0001]
[1757284695070,0.31151526,111210.0,111200.0,0.0001]
[1757284695269,0.68151526,111210.0,111190.0,0.12594706]
[1757284695464,0.97443763,111200.0,111190.0,0.12594706]
[1757284695665,1.35443763,111200.0,111190.0,0.12584706]
[1757284697672,1.36443763,111200.0,111190.0,0.12584706]
[1757284698668,1.38043763,111200.0,111190.0,0.12784706]
[1757284699874,1.38960447,111200.0,111190.0,0.12784706]
[1757284700474,1.70128665,111200.0,111190.0,0.12784706]
[1757284701369,1.70128665,111200.0,111190.0,0.11493706]
[1757284702970,1.70128665,111200.0,111190.0,0.002]
[1757284704276,1.95128665,111200.0,111190.0,0.002]
[1757284705168,1.95128665,111200.0,111190.0,0.01601213]
[1757284705572,1.95128665,111200.0,111190.0,0.002]
[1757284710180,1.95128665,111200.0,111180.0,0.0001]
[1757284710480,0.31162654,111190.0,111180.0,0.0001]
[1757284710680,0.63162654,111190.0,111170.0,0.12637706]
[1757284710980,1.12982654,111180.0,111170.0,0.14920706]
[1757284711185,1.49982654,111180.0,111170.0,0.14910706]
[1757284712784,1.50082654,111180.0,111170.0,0.15210706]
[1757284712982,1.50182654,111180.0,111170.0,0.15410706]
[1757284713785,1.65763981,111180.0,111170.0,0.15410706]
[1757284714081,1.50182654,111180.0,111170.0,0.15410706]
[1757284714478,1.65763981,111180.0,111170.0,0.13127706]
[1757284714678,1.65763981,111180.0,111170.0,0.01834]
[1757284714882,0.68362654,111180.0,111170.0,0.01834]
[1757284715083,1.50158654,111180.0,111170.0,0.01834]
[1757284715280,1.65739981,111180.0,111170.0,0.01834]
[1757284715482,1.65739981,111180.0,111170.0,0.13127706]
[1757284717182,1.50158654,111180.0,111170.0,0.15245706]
[1757284722082,1.65739981,111180.0,111170.0,0.03952]
[1757284723489,0.83943981,111180.0,111170.0,0.03952]
[1757284724093,1.65743981,111180.0,111170.0,0.03952]
[1757284724595,1.50162654,111180.0,111170.0,0.03952]
[1757284726394,1.50162654,111180.0,111170.0,0.15245706]
[1757284726583,1.65743981,111180.0,111170.0,0.13127706]
[1757284726890,1.65743981,111180.0,111170.0,0.005]
[1757284727694,0.83943981,111180.0,111170.0,0.005]
[1757284727891,1.65743981,111180.0,111170.0,0.03997]
[1757284729994,1.65743981,111180.0,111170.0,0.005]
[1757284731393,0.83943981,111180.0,111170.0,0.005]
[1757284731596,1.65743981,111180.0,111170.0,0.005]
[1757284732697,0.83943981,111180.0,111170.0,0.005]
[1757284732994,1.65743981,111180.0,111170.0,0.005]
[1757284735598,1.65743981,111180.0,111170.0,0.11793706]
[1757284736396,1.65743981,111180.0,111170.0,0.005]
[1757284744404,1.90743981,111180.0,111170.0,0.005]
[1757284756910,0.83943981,111180.0,111170.0,0.03965]
[1757284757115,1.65739981,111180.0,111170.0,0.03965]
[1757284759822,1.65739981,111180.0,111170.0,0.01843]
[1757284760621,1.65739981,111180.0,111170.0,0.005]
[1757284762322,1.5017301,111180.0,111170.0,0.005]
[1757284767727,1.5017301,111180.0,111170.0,0.03965]
[1757284769124,1.5017301,111180.0,111170.0,0.01843]
[1757284769724,1.5017301,111180.0,111170.0,0.005]
[1757284770128,1.5017301,111180.0,111170.0,0.00686]
[1757284788249,0.6837701,111180.0,111170.0,0.00686]
[1757284788436,1.5015301,111180.0,111170.0,0.00686]
[1757284792236,1.5015301,111180.0,111170.0,0.005]
[1757284792646,0.6837701,111180.0,111170.0,0.005]
[1757284792839,1.5015301,111180.0,111170.0,0.005]
[1757284793146,0.6837701,111180.0,111170.0,0.005]
[1757284793346,1.5015301,111180.0,111170.0,0.005]
[1757284798744,0.6837701,111180.0,111170.0,0.005]
[1757284798945,1.5015301,111180.0,111170.0,0.005]
[1757284799342,1.5014901,111180.0,111170.0,0.03877]
[1757284805256,1.5004901,111180.0,111170.0,0.03677]
[1757284805456,1.5084901,111180.0,111170.0,0.03377]
[1757284805658,1.5244901,111180.0,111170.0,0.03577]
[1757284811056,1.5244901,111180.0,111170.0,0.03763]
[1757284811360,1.5244901,111180.0,111170.0,0.00386]
[1757284820569,1.5244901,111180.0,111170.0,0.01691]
[1757284820871,1.5244901,111180.0,111170.0,0.0387]
[1757284821564,1.5246901,111180.0,111170.0,0.0387]
[1757284824372,1.68054941,111180.0,111170.0,0.0387]
[1757284824574,0.395,111180.0,111170.0,0.2887]
[1757284824775,1.52455294,111180.0,111170.0,0.2887]
[1757284825476,1.68042941,111180.0,111170.0,0.2887]
[1757284825972,1.52455294,111180.0,111170.0,0.2887]
[1757284830380,0.70675294,111180.0,111170.0,0.2887]
[1757284830575,1.52451294,111180.0,111170.0,0.2887]
[1757284834480,0.70675294,111180.0,111170.0,0.2887]
[1757284834781,1.52451294,111180.0,111170.0,0.2887]
[1757284835580,0.70675294,111180.0,111170.0,0.2887]
[1757284835881,1.52451294,111180.0,111170.0,0.2887]
[1757284839283,1.52451294,111180.0,111170.0,0.0387]
[1757284842986,0.70675294,111180.0,111170.0,0.0387]
[1757284843186,1.52447294,111180.0,111170.0,0.0387]
[1757284843388,0.70675294,111180.0,111170.0,0.0387]
[1757284843584,0.70675294,111180.0,111170.0,0.19457647]
[1757284843787,1.52447294,111180.0,111170.0,0.0387]
[1757284843984,0.55087647,111180.0,111170.0,0.55751353]
[1757284844181,1.36859647,111180.0,111170.0,0.55751353]
[1757284844376,1.52447294,111180.0,111170.0,0.40163706]
[1757284847090,1.36859647,111180.0,111170.0,0.40163706]
[1757284847388,1.36859647,111180.0,111170.0,0.55751353]
[1757284847790,1.52447294,111180.0,111170.0,0.40163706]
[1757284862810,1.52447294,111180.0,111170.0,0.55751353]
[1757284864213,1.52447294,111180.0,111170.0,0.15163706]
[1757284864415,1.68034941,111180.0,111170.0,0.0387]
[1757284864606,1.52447294,111180.0,111170.0,0.0387]
[1757284865614,1.52447294,111180.0,111170.0,0.00386]
[1757284865615,1.93034941,111180.0,111170.0,0.00386]
[1757284866917,1.93034941,111180.0,111170.0,0.03995]
[1757284867514,1.93034941,111180.0,111170.0,0.01768]
[1757284867813,1.93034941,111180.0,111170.0,0.00386]
[1757284870013,1.46272,111180.0,111170.0,0.03995]
[1757284870214,1.93034941,111180.0,111170.0,0.03995]
[1757284870414,1.93034941,111180.0,111170.0,0.01768]
[1757284871016,1.11262941,111180.0,111170.0,0.03995]
[1757284871216,1.93014941,111180.0,111170.0,0.03995]
[1757284871615,0.645,111180.0,111170.0,0.03995]
[1757284871811,0.95675294,111180.0,111170.0,0.03995]
[1757284872018,1.77427294,111180.0,111170.0,0.03995]
[1757284878222,0.95675294,111180.0,111170.0,0.03995]
[1757284878418,1.77423294,111180.0,111170.0,0.03995]
[1757284879318,1.77427294,111180.0,111170.0,0.03995]
[1757284886324,1.77423724,111180.0,111170.0,0.03995]
[1757284887618,0.395,111180.0,111170.0,0.28995]
[1757284887818,0.395,111180.0,111170.0,0.44580862]
[1757284888026,1.36829862,111180.0,111170.0,0.28995]
[1757284888327,1.36829862,111180.0,111170.0,0.15288706]
[1757284888719,1.36829862,111180.0,111170.0,0.03995]
[1757284889124,1.35729862,111180.0,111170.0,0.03995]
[1757284889828,1.35229862,111180.0,111170.0,0.03895]
[1757284890128,1.35629862,111180.0,111170.0,0.03995]
[1757284890427,0.383,111180.0,111170.0,0.53575462]
[1757284890623,1.20044,111180.0,111170.0,0.53575462]
[1757284891827,1.20044,111180.0,111170.0,0.379896]
[1757284892327,1.20044,111180.0,111170.0,0.49298128]
[1757284892529,1.20044,111180.0,111170.0,0.6488399]
[1757284892729,0.383,111180.0,111170.0,0.6488399]
[1757284893031,1.2004,111180.0,111170.0,0.6488399]
[1757284893329,0.8304,111180.0,111170.0,0.6488399]
[1757284893531,0.343,111180.0,111170.0,0.53575462]
[1757284893732,0.013,111180.0,111170.0,0.53575462]
[1757284895123,0.006,111180.0,111170.0,0.53575462]
[1757284895328,0.00013484,111190.0,111180.0,0.1255279]
[1757284895528,0.00013484,111190.0,111180.0,0.41290613]
[1757284895830,0.00013484,111190.0,111180.0,0.29996159]
[1757284896335,0.00013484,111190.0,111180.0,0.41284768]
[1757284896531,0.01013484,111190.0,111180.0,0.41284768]
[1757284896732,0.01013484,111190.0,111180.0,0.41470768]
[1757284897136,0.33013484,111190.0,111180.0,0.41470768]
[1757284898128,0.34213484,111190.0,111180.0,0.41570768]
[1757284899035,0.36292484,111190.0,111180.0,0.25984906]
[1757284899231,0.36292484,111190.0,111180.0,0.41570768]
[1757284899536,0.34213484,111190.0,111180.0,0.41570768]
[1757284899939,0.34213484,111190.0,111180.0,0.25984906]
[1757284900238,0.34213484,111190.0,111180.0,0.41570768]
[1757284904438,0.34213484,111190.0,111180.0,0.30282159]
[1757284907242,0.34213484,111190.0,111180.0,0.41552596]
[1757284910449,0.34213484,111190.0,111180.0,0.25966734]
[1757284910646,0.34213484,111190.0,111180.0,0.41552596]
[1757284911147,0.02213484,111190.0,111180.0,0.41552596]
[1757284911447,0.39213484,111190.0,111180.0,0.41552596]
[1757284911847,0.39213484,111190.0,111180.0,0.25966734]
[1757284912042,0.02213484,111190.0,111180.0,0.25966734]
[1757284912250,0.34213484,111190.0,111180.0,0.41552596]
[1757284913248,0.34213484,111190.0,111180.0,0.30282159]
[1757284917647,0.36292484,111190.0,111180.0,0.05702507]
[1757284917854,0.51878346,111190.0,111180.0,0.05702507]
[1757284918152,0.51878346,111190.0,111180.0,0.16999938]
[1757284920652,0.51878346,111190.0,111180.0,0.05702507]
[1757284924264,0.51878346,111190.0,111180.0,0.14696297]
[1757284924562,0.36292484,111190.0,111180.0,0.14696297]
[1757284926762,0.35492484,111190.0,111180.0,0.14796297]
[1757284928056,0.34292484,111190.0,111180.0,0.14696297]
[1757284928362,0.34692484,111190.0,111180.0,0.14696297]
[1757284929764,0.34692484,111190.0,111180.0,0.05702507]
[1757284930869,0.50278346,111190.0,111180.0,0.05702507]
[1757284934574,0.34692484,111190.0,111180.0,0.21288369]
[1757284935071,0.34692484,111190.0,111180.0,0.05702507]
[1757284935973,0.34692484,111190.0,111180.0,0.14696297]
[1757284936174,0.00613484,111190.0,111180.0,0.30282159]
[1757284937170,0.00613484,111190.0,111180.0,0.46438032]
[1757284938072,0.31613484,111190.0,111180.0,0.46438032]
[1757284938368,0.31613484,111190.0,111180.0,0.71438032]
[1757284939474,0.00613484,111190.0,111180.0,1.68731894]
[1757284940174,0.00909871,111210.0,111200.0,0.1248416]
[1757284940372,0.37,111210.0,111200.0,0.39383036]
[1757284940772,0.37,111210.0,111200.0,0.28070022]
[1757284941277,0.381,111210.0,111200.0,0.44325895]
[1757284941575,0.02,111210.0,111200.0,1.51319895]
[1757284942267,0.013,111210.0,111200.0,1.51319895]
[1757284942465,0.006,111210.0,111200.0,1.35734033]
[1757284942673,0.02132,111230.0,111220.0,0.03492]
[1757284942877,0.35132,111230.0,111220.0,0.30370991]
[1757284943974,0.42270371,111230.0,111220.0,0.30370991]
[1757284944377,0.42870371,111230.0,111220.0,0.30370991]
[1757284944775,0.43670371,111230.0,111220.0,0.30470991]
[1757284946275,0.37415272,111230.0,111220.0,0.39461541]
[1757284948078,0.37415272,111230.0,111220.0,0.30470991]
[1757284948274,0.52980898,111230.0,111220.0,0.30450755]
[1757284948480,0.37415272,111230.0,111220.0,0.30450755]
[1757284948681,0.52980898,111230.0,111220.0,0.30450755]
[1757284949279,0.37415272,111230.0,111220.0,0.30450755]
[1757284950983,0.37415272,111230.0,111220.0,0.46016381]
[1757284952580,0.37415272,111230.0,111220.0,0.34723252]
[1757284953683,0.36532,111230.0,111220.0,0.34723252]
[1757284954281,0.344,111230.0,111220.0,0.34723252]
[1757284955678,0.344,111230.0,111220.0,0.43713802]
[1757284956778,0.36554,111230.0,111220.0,0.34723252]
[1757284956978,0.36554,111230.0,111220.0,0.46016381]
[1757284958981,0.36554,111230.0,111220.0,0.34723252]
[1757284959771,0.36554,111230.0,111220.0,0.46016381]
[1757284961384,0.36554,111230.0,111220.0,0.34723252]
[1757284961879,0.36554,111230.0,111220.0,0.46016381]
[1757284962988,0.36554,111230.0,111220.0,0.46202381]
[1757284966391,0.36554,111230.0,111220.0,0.15071129]
[1757284966580,0.36554,111230.0,111220.0,0.46202381]
[1757284969483,0.36554,111230.0,111220.0,0.34909252]
[1757284972892,0.36554,111230.0,111220.0,0.03778]
[1757284973097,0.36554,111230.0,111220.0,0.34909252]
[1757284973286,0.35754,111230.0,111220.0,0.34909252]
[1757284973487,0.35754,111230.0,111220.0,0.35209252]
[1757284973488,0.35154,111230.0,111220.0,0.35209252]
[1757284977596,0.33,111230.0,111220.0,0.35209252]
[1757284978197,0.33,111230.0,111220.0,0.51365125]
[1757284979405,0.33,111230.0,111220.0,0.60355675]
[1757284980501,0.00893989,111240.0,111230.0,0.1257475]
[1757284980797,0.32,111240.0,111230.0,1.27214187]
[1757284982002,0.329,111240.0,111230.0,1.27214187]
[1757284982193,0.33806311,111240.0,111230.0,1.27214187]
[1757284983205,0.33806311,111240.0,111230.0,1.3851225]
[1757284983809,0.33806311,111240.0,111230.0,1.27214187]
[1757284984608,0.33806311,111240.0,111230.0,1.27400187]
[1757284987305,0.329,111240.0,111230.0,1.52400187]
[1757284987605,0.0001,111250.0,111240.0,0.1258094]
[1757284987808,0.3501,111250.0,111240.0,0.43712192]
[1757284988108,0.3501,111250.0,111240.0,0.59868065]
[1757284988808,0.3561,111250.0,111240.0,0.59968065]
[1757284989401,0.3561,111250.0,111240.0,0.75533691]
[1757284989604,2.66755933,111290.0,111280.0,0.02279]
[1757284989806,3.17311559,111290.0,111280.0,0.02279]
[1757284990910,3.19315113,111290.0,111280.0,0.02279]
[1757284991209,3.19515113,111290.0,111280.0,0.02279]
[1757284991907,3.19315113,111290.0,111280.0,0.02279]
[1757284992107,3.19515113,111290.0,111280.0,0.02279]
[1757284992907,3.19115113,111290.0,111280.0,0.02279]
[1757284999714,3.19115113,111290.0,111280.0,0.02464]
[1757285001015,3.19115113,111290.0,111280.0,0.18029626]
[1757285002514,3.19115113,111290.0,111280.0,0.02464]
[1757285002714,3.18615113,111290.0,111280.0,0.02464]
[1757285004716,3.18615113,111290.0,111280.0,0.00185]
[1757285004907,3.18615113,111290.0,111280.0,0.02464]
[1757285007817,2.43999113,111290.0,111280.0,0.02464]
[1757285008119,3.25635113,111290.0,111280.0,0.02464]
[1757285008519,3.25335113,111290.0,111280.0,0.02464]
[1757285009121,3.25435113,111290.0,111280.0,0.02464]
[1757285009520,3.25435113,111290.0,111280.0,0.18029626]
[1757285010321,3.25435113,111290.0,111280.0,0.02464]
[1757285010322,3.2542117,111290.0,111280.0,0.02464]
[1757285011220,3.2542117,111290.0,111280.0,0.03777]
[1757285012120,3.2542117,111290.0,111280.0,0.02464]
[1757285014516,3.2542117,111290.0,111280.0,0.00185]
[1757285015820,3.2542117,111290.0,111280.0,0.0249]
[1757285020220,3.2542117,111290.0,111280.0,0.00185]
[1757285022826,1.4406517,111290.0,111280.0,0.00185]
[1757285027741,1.4406517,111290.0,111280.0,0.11463306]
[1757285033041,1.6906517,111290.0,111280.0,0.11463306]
[1757285033542,1.6906517,111290.0,111280.0,0.00185]
[1757285035644,0.014,111280.0,111270.0,0.00013484]
[1757285035838,0.50062683,111280.0,111270.0,0.00013484]
[1757285036944,0.50262683,111280.0,111270.0,0.00013484]
[1757285037146,0.50462683,111280.0,111270.0,0.00013484]
[1757285038645,0.50262683,111280.0,111270.0,0.1129179]
[1757285038844,0.50662683,111280.0,111270.0,0.1129179]
[1757285039041,0.50762683,111280.0,111270.0,0.1129179]
[1757285039241,0.49762683,111280.0,111270.0,0.1129179]
[1757285044852,1.31382683,111280.0,111270.0,0.1129179]
[1757285045748,0.49762683,111280.0,111270.0,0.1359679]
[1757285045955,1.31382683,111280.0,111270.0,0.1359679]
[1757285046451,1.31382683,111280.0,111270.0,0.1129179]
[1757285047052,1.31382683,111280.0,111270.0,0.1358979]
[1757285049949,1.31382683,111280.0,111270.0,0.1129179]
[1757285052958,1.71934366,111280.0,111270.0,0.0989179]
[1757285053148,1.71934366,111280.0,111250.0,0.16155873]
[1757285053346,0.17729683,111260.0,111250.0,0.02298]
[1757285053558,1.30345683,111260.0,111250.0,0.02298]
[1757285054557,1.30345683,111260.0,111250.0,0.02598]
[1757285055362,1.30345683,111260.0,111250.0,0.02798]
[1757285056056,1.30345683,111260.0,111250.0,0.02598]
[1757285056261,1.30345683,111260.0,111250.0,0.02998]
[1757285056764,1.30345683,111260.0,111250.0,0.03198]
[1757285056962,1.14794,111260.0,111250.0,0.04508]
[1757285057264,1.30345683,111260.0,111250.0,0.04508]
[1757285058466,1.31565683,111260.0,111250.0,0.03198]
[1757285059965,1.30345683,111260.0,111250.0,0.04508]
[1757285060563,1.14794,111260.0,111250.0,0.04508]
[1757285060764,1.30745683,111260.0,111250.0,0.04008]
[1757285060964,1.30745683,111260.0,111250.0,0.15296045]
[1757285061362,1.31045683,111260.0,111250.0,0.14896045]
[1757285061865,1.30645683,111260.0,111250.0,0.14896045]
[1757285062164,1.30745683,111260.0,111250.0,0.14896045]
[1757285063361,1.30745683,111260.0,111250.0,0.03608]
[1757285072375,1.46315268,111260.0,111250.0,0.03608]
[1757285079572,1.46315268,111260.0,111240.0,0.17545873]
[1757285079573,1.47535268,111260.0,111240.0,0.17545873]
[1757285079777,0.34744268,111250.0,111240.0,0.16165873]
[1757285080076,0.53183634,111250.0,111240.0,0.0001]
[1757285080478,0.53183634,111250.0,111240.0,0.02227]
[1757285080777,0.53183634,111250.0,111240.0,0.02527]
[1757285081076,0.53183634,111250.0,111240.0,0.13823683]
[1757285081276,0.53183634,111250.0,111240.0,0.14323683]
[1757285081480,0.53183634,111250.0,111240.0,0.14023683]
[1757285081672,0.53183634,111250.0,111240.0,0.14423683]
[1757285082478,0.53383634,111250.0,111240.0,0.13923683]
[1757285082782,0.53583634,111250.0,111240.0,0.13523683]
[1757285095690,0.53583634,111250.0,111240.0,0.14913683]
[1757285096788,0.36651,111250.0,111240.0,0.55474317]
[1757285097094,0.344,111250.0,111240.0,0.95584555]
[1757285097588,0.05748264,111250.0,111240.0,0.84287872]
[1757285097787,0.00023484,111260.0,111250.0,0.1259516]
[1757285098090,0.35013484,111260.0,111250.0,0.59827792]
[1757285098290,0.35013484,111260.0,111250.0,0.84827792]
[1757285098486,0.0001,111270.0,111260.0,0.1259436]
[1757285098790,0.02261,111280.0,111270.0,0.1259355]
[1757285099088,0.35251,111280.0,111270.0,0.39425892]
[1757285099292,0.35251,111280.0,111270.0,0.30439342]
[1757285099690,0.35251,111280.0,111270.0,0.79986526]
[1757285099893,0.33,111280.0,111270.0,0.79986526]
[1757285100594,0.33,111280.0,111270.0,0.53154184]
[1757285100985,0.33,111280.0,111270.0,0.68714818]
[1757285101187,0.33,111280.0,111270.0,0.79975406]
[1757285101690,0.331,111280.0,111270.0,0.68714818]
[1757285101993,0.331,111280.0,111270.0,1.50306818]
[1757285102492,0.332,111280.0,111270.0,1.61567406]
[1757285102688,0.332,111280.0,111270.0,1.68713989]
[1757285102998,0.332,111280.0,111270.0,1.57453401]
[1757285103590,0.332,111280.0,111270.0,0.75861401]
[1757285103790,0.332,111280.0,111270.0,1.57453401]
[1757285104097,0.35451,111280.0,111270.0,0.39393306]
[1757285104598,0.35451,111280.0,111270.0,0.30406696]
[1757285104995,0.35451,111280.0,111270.0,0.14846062]
[1757285105296,0.35451,111280.0,111270.0,0.30406696]
[1757285110895,0.35451,111280.0,111270.0,0.5495394]
[1757285111501,0.35451,111280.0,111270.0,0.56268144]
[1757285114301,0.332,111280.0,111270.0,0.56268144]
[1757285115499,0.332,111280.0,111270.0,0.81268144]
[1757285115702,0.002,111280.0,111270.0,1.04848058]
[1757285115996,0.002,111280.0,111270.0,0.70029082]
[1757285117104,0.002,111280.0,111270.0,0.77394912]
[1757285118201,0.002,111280.0,111270.0,1.11394912]
[1757285118403,0.0002,111290.0,111280.0,0.125248]
[1757285118600,0.33,111290.0,111280.0,1.42152906]
[1757285118801,0.0002,111300.0,111280.0,1.26592272]
[1757285119003,0.39263,111300.0,111290.0,0.27120367]
[1757285119202,0.39243,111300.0,111290.0,0.28434571]
[1757285119714,0.39243,111300.0,111290.0,0.12873937]
[1757285120008,0.39243,111300.0,111290.0,0.86477204]
[1757285120306,0.39243,111300.0,111290.0,1.02037838]
[1757285120902,0.39643,111300.0,111290.0,1.02037838]
[1757285121309,0.39943,111300.0,111290.0,1.02037838]
[1757285122609,0.39943,111300.0,111290.0,1.10058571]
[1757285126216,0.39943,111300.0,111290.0,1.02037838]
[1757285127424,0.39943,111300.0,111290.0,1.22251501]
[1757285128128,0.39943,111300.0,111290.0,1.37812135]
[1757285128827,0.39943,111300.0,111290.0,1.28827105]
[1757285129728,0.39943,111300.0,111290.0,1.13266471]
[1757285131629,0.377,111300.0,111290.0,1.28827105]
[1757285132521,0.377,111300.0,111290.0,1.13266471]
[1757285132726,0.377,111300.0,111290.0,1.28827105]
[1757285134333,0.377,111300.0,111290.0,1.13249216]
[1757285134627,0.377,111300.0,111290.0,1.22234266]
[1757285135419,0.377,111300.0,111290.0,1.11005633]
[1757285136426,0.377,111300.0,111290.0,1.22288162]
[1757285136730,0.377,111300.0,111290.0,1.11005633]
[1757285138329,0.14448,111300.0,111290.0,1.60549012]
[1757285138523,0.00898737,111340.0,111330.0,0.01381]
[1757285138730,0.02157,111340.0,111330.0,0.35888962]
[1757285139033,0.34157,111340.0,111330.0,0.34574758]
[1757285139331,0.34157,111340.0,111330.0,0.28395967]
[1757285139533,0.32,111340.0,111330.0,0.44875664]
[1757285139830,0.32,111340.0,111330.0,0.5615842]
[1757285140031,0.326,111340.0,111330.0,0.5615842]
[1757285140330,0.326,111340.0,111330.0,0.25071662]
[1757285140533,0.325,111340.0,111330.0,0.471766]
[1757285140837,0.325,111340.0,111330.0,0.35893844]
[1757285141038,0.34757,111340.0,111330.0,0.04807086]
[1757285141239,0.34757,111340.0,111330.0,0.31633221]
[1757285141537,0.34757,111340.0,111330.0,0.20350465]
[1757285142342,0.34757,111340.0,111330.0,0.28385236]
[1757285142735,0.34257,111340.0,111330.0,0.28385236]
[1757285143038,0.321,111340.0,111330.0,0.44875674]
[1757285143239,0.34257,111340.0,111330.0,0.20350465]
[1757285143438,0.34257,111340.0,111330.0,0.2838252]
[1757285143636,0.34257,111340.0,111330.0,0.31633221]
[1757285143939,0.34257,111340.0,111330.0,0.28383361]
[1757285149039,0.34257,111340.0,111330.0,0.4392674]
[1757285149948,0.34257,111340.0,111330.0,0.12839982]
[1757285150146,0.34257,111340.0,111330.0,0.4392674]
[1757285151649,0.34257,111340.0,111330.0,0.28383361]
[1757285153649,0.34257,111340.0,111330.0,0.4392674]
[1757285155153,0.34257,111340.0,111330.0,0.20350465]
[1757285155852,0.34257,111340.0,111330.0,0.28378372]
[1757285156049,0.34257,111340.0,111330.0,0.04807086]
[1757285156253,0.76102379,111340.0,111330.0,0.14708842]
[1757285156446,0.76102379,111340.0,111330.0,0.22737977]
[1757285156753,0.76102379,111340.0,111330.0,0.11455221]
[1757285156955,0.76102379,111340.0,111330.0,0.09348221]
[1757285157252,1.57798379,111340.0,111330.0,0.09348221]
[1757285157857,1.57798379,111340.0,111330.0,0.01319086]
[1757285158050,0.76102379,111340.0,111330.0,0.07742901]
[1757285158353,2.57278379,111340.0,111330.0,0.07042901]